bitfinex/quotes_BTCUSD_20220207
["timestamp","ask_amount","ask_price","bid_price","bid_amount"]
[1644243634767,0.05865969,42867.0,42863.0,0.48784348]
[1644243634969,0.058365,42867.0,42863.0,0.48784348]
[1644243635368,0.05865969,42867.0,42863.0,0.48784348]
[1644243636920,0.05865969,42867.0,42863.0,0.54620943]
[1644243637311,0.05865969,42867.0,42863.0,0.48784348]
[1644243638013,0.05865969,42867.0,42863.0,0.54620755]
[1644243638014,0.00029469,42867.0,42863.0,0.54620755]
[1644243638214,0.058365,42868.0,42863.0,0.54620755]
[1644243638416,0.00029469,42867.0,42863.0,0.54620755]
[1644243638616,0.00029469,42868.0,42863.0,0.54620755]
[1644243638817,0.00029469,42869.0,42863.0,0.54620755]
[1644243639016,0.058366,42867.0,42863.0,0.48784348]
[1644243641664,0.05866069,42867.0,42863.0,0.48784348]
[1644243642365,0.05866069,42867.0,42863.0,0.48284348]
[1644243642564,0.05866069,42867.0,42863.0,0.48274348]
[1644243644416,0.05866069,42867.0,42863.0,0.59110627]
[1644243644619,0.058366,42867.0,42863.0,0.59110627]
[1644243645014,0.05866069,42867.0,42863.0,0.54110627]
[1644243645214,0.058366,42867.0,42864.0,0.05]
[1644243645513,0.058361,42869.0,42868.0,0.48274348]
[1644243645716,0.384293,42869.0,42868.0,0.48274348]
[1644243646115,0.058361,42869.0,42868.0,0.48274348]
[1644243646715,0.384293,42869.0,42868.0,0.48274348]
[1644243651270,0.434293,42869.0,42868.0,0.48274348]
[1644243651717,0.384293,42869.0,42868.0,0.48274348]
[1644243652719,0.434293,42869.0,42868.0,0.48274348]
[1644243653719,0.384293,42869.0,42868.0,0.48274348]
[1644243656571,0.60853772,42869.0,42868.0,0.47872483]
[1644243656771,0.65853772,42869.0,42868.0,0.47872483]
[1644243657772,0.384293,42869.0,42868.0,0.47872483]
[1644243659817,0.434293,42869.0,42868.0,0.47872483]
[1644243660819,0.384293,42869.0,42868.0,0.47872483]
[1644243664474,0.6721534,42869.0,42868.0,0.47872483]
[1644243665278,0.8221534,42869.0,42868.0,0.47872483]
[1644243665676,0.8221534,42869.0,42868.0,0.35872051]
[1644243667115,0.98219075,42869.0,42868.0,0.35872051]
[1644243667613,0.83219075,42869.0,42868.0,0.35872051]
[1644243668113,0.7221534,42869.0,42868.0,0.35872051]
[1644243672970,0.434293,42869.0,42868.0,0.35872051]
[1644243674020,0.434293,42869.0,42860.0,0.1162]
[1644243674222,0.434293,42869.0,42859.0,0.01814858]
[1644243674223,0.058381,42866.0,42859.0,0.01814858]
[1644243674520,0.384313,42866.0,42859.0,0.01814858]
[1644243674718,0.0467,42865.0,42859.0,0.01814858]
[1644243674919,0.325932,42864.0,42859.0,0.01814858]
[1644243675119,0.62609437,42864.0,42855.0,0.05838211]
[1644243675419,0.26058009,42857.0,42856.0,0.3]
[1644243675622,0.26058009,42857.0,42854.0,0.05]
[1644243676318,0.26058009,42857.0,42854.0,0.10837915]
[1644243677766,0.26058009,42857.0,42855.0,0.325932]
[1644243679166,0.26058009,42857.0,42854.0,0.10837915]
[1644243679567,0.058379,42856.0,42854.0,0.10837915]
[1644243679970,0.058379,42856.0,42855.0,0.325932]
[1644243680573,0.26058009,42857.0,42854.0,0.05]
[1644243682220,0.26878804,42862.0,42856.0,0.0583742]
[1644243682419,0.325932,42861.0,42856.0,0.0583742]
[1644243682620,0.26878804,42862.0,42854.0,0.05]
[1644243682821,0.26003735,42863.0,42854.0,0.05]
[1644243683226,0.25080088,42860.0,42854.0,0.05]
[1644243683426,0.30917488,42860.0,42854.0,0.05]
[1644243683822,0.35917488,42860.0,42854.0,0.05]
[1644243684223,0.30080088,42860.0,42854.0,0.05]
[1644243684424,0.30080088,42860.0,42854.0,0.10837664]
[1644243684826,0.058376,42859.0,42854.0,0.10837664]
[1644243686870,0.058376,42859.0,42854.0,0.05]
[1644243689118,0.25267324,42858.0,42854.0,0.05]
[1644243689319,0.058376,42859.0,42854.0,0.10837724]
[1644243691328,0.29405187,42858.0,42854.0,0.10837724]
[1644243691621,0.058379,42857.0,42854.0,0.10837724]
[1644243692022,0.058379,42857.0,42854.0,0.05]
[1644243692883,0.325932,42856.0,42854.0,0.05]
[1644243694084,0.16003735,42859.0,42854.0,0.05]
[1644243694286,0.16003735,42859.0,42855.0,0.05837707]
[1644243694485,0.325932,42858.0,42855.0,0.05837707]
[1644243695886,0.325932,42858.0,42855.0,0.05810486]
[1644243696287,0.52533703,42860.0,42855.0,0.05810486]
[1644243696527,0.325932,42859.0,42855.0,0.05810486]
[1644243697320,0.325932,42859.0,42854.0,0.05]
[1644243697321,0.325932,42857.0,42854.0,0.05]
[1644243698322,0.16003735,42859.0,42855.0,0.05837788]
[1644243698620,0.325932,42858.0,42855.0,0.05837788]
[1644243699420,0.325932,42858.0,42854.0,0.05]
[1644243700370,0.384309,42858.0,42854.0,0.05]
[1644243700770,0.058377,42858.0,42854.0,0.05]
[1644243701573,0.40917488,42860.0,42855.0,0.24191901]
[1644243701775,0.108374,42860.0,42855.0,0.30029028]
[1644243701972,0.058374,42860.0,42855.0,0.30029028]
[1644243702172,0.16313908,42863.0,42855.0,0.30029028]
[1644243702372,0.05310173,42863.0,42855.0,0.24191901]
[1644243702772,0.384303,42862.0,42855.0,0.24191901]
[1644243703271,0.384303,42862.0,42856.0,0.05837134]
[1644243704125,0.05310173,42863.0,42860.0,0.05]
[1644243704126,0.00310173,42863.0,42860.0,0.05]
[1644243704327,0.00310173,42863.0,42861.0,0.04992504]
[1644243704720,0.00310173,42863.0,42860.0,0.1]
[1644243704920,0.00310173,42863.0,42861.0,0.04992504]
[1644243705119,0.00310173,42863.0,42862.0,0.25560864]
[1644243705320,0.00310173,42863.0,42862.0,0.30560864]
[1644243705520,0.00310173,42863.0,42862.0,0.63154064]
[1644243706119,0.00310173,42863.0,42862.0,0.70463692]
[1644243706321,0.00310173,42863.0,42862.0,0.97951033]
[1644243706719,0.00310173,42863.0,42862.0,1.02943537]
[1644243706923,0.00310173,42863.0,42862.0,0.97951033]
[1644243707778,0.00310173,42863.0,42862.0,1.02906527]
[1644243708478,0.00310173,42863.0,42862.0,0.97951033]
[1644243712423,0.00310173,42863.0,42862.0,1.02906527]
[1644243713823,0.00248015,42863.0,42862.0,1.02906527]
[1644243714426,0.00248015,42863.0,42862.0,1.07576527]
[1644243715275,0.00248015,42863.0,42862.0,1.23375174]
[1644243717078,0.00029643,42869.0,42868.0,0.04918541]
[1644243717280,0.1,42870.0,42868.0,0.04918541]
[1644243717281,0.10029643,42870.0,42869.0,0.325932]
[1644243717480,0.10029643,42870.0,42869.0,0.372632]
[1644243717481,0.1,42870.0,42869.0,0.372632]
[1644243717879,0.1,42870.0,42869.0,0.60517415]
[1644243718080,0.1,42870.0,42869.0,0.66351135]
[1644243718377,0.1,42870.0,42869.0,0.77184935]
[1644243719027,0.1,42870.0,42869.0,0.71351135]
[1644243719520,0.1,42870.0,42869.0,1.01096897]
[1644243719720,0.1,42870.0,42869.0,1.11096897]
[1644243720222,0.1,42870.0,42869.0,1.16096897]
[1644243720821,0.00029643,42872.0,42870.0,0.75]
[1644243721024,0.00129643,42873.0,42871.0,0.77669218]
[1644243721221,0.001,42873.0,42872.0,0.59751985]
[1644243721427,0.00129593,42873.0,42872.0,0.74421985]
[1644243721623,0.04171881,42879.0,42872.0,0.74421985]
[1644243721926,0.001,42885.0,42882.0,0.058322]
[1644243722122,0.001,42885.0,42884.0,0.05]
[1644243722324,0.21365585,42892.0,42884.0,0.05]
[1644243722325,0.001,42892.0,42889.0,0.04918541]
[1644243722527,0.001,42892.0,42890.0,0.722632]
[1644243722798,0.005,42900.0,42890.0,0.722632]
[1644243722799,0.4501044,42908.0,42898.0,0.04918541]
[1644243722985,0.4501044,42908.0,42901.0,0.05]
[1644243723182,0.00029722,42905.0,42901.0,0.722632]
[1644243723387,0.00029722,42905.0,42901.0,0.522632]
[1644243723581,0.00029722,42905.0,42901.0,0.872632]
[1644243724180,0.00029722,42905.0,42901.0,1.456032]
[1644243724784,0.02,42909.0,42908.0,0.04918541]
[1644243724990,0.001,42915.0,42910.0,0.325932]
[1644243725183,0.001,42915.0,42914.0,0.05]
[1644243725388,0.001,42915.0,42914.0,0.35008676]
[1644243725684,0.001,42915.0,42914.0,0.28959763]
[1644243725883,0.001,42915.0,42914.0,0.33959763]
[1644243726631,0.001,42915.0,42914.0,0.0467]
[1644243727030,0.326932,42915.0,42914.0,0.0467]
[1644243727231,0.326932,42915.0,42903.0,0.35]
[1644243727427,0.001,42915.0,42903.0,0.35]
[1644243727636,0.001,42915.0,42907.0,0.04918541]
[1644243727637,0.384235,42914.0,42907.0,0.04918541]
[1644243727828,0.325932,42913.0,42906.0,0.021296]
[1644243728827,0.325932,42913.0,42906.0,0.071296]
[1644243729031,0.001,42915.0,42907.0,0.3]
[1644243729628,0.001,42915.0,42907.0,0.34918541]
[1644243730029,0.001,42915.0,42914.0,0.2521295]
[1644243731677,0.001,42915.0,42913.0,0.18786211]
[1644243731879,0.001,42915.0,42913.0,0.23786211]
[1644243732275,0.001,42915.0,42914.0,0.261697]
[1644243735023,0.001,42915.0,42913.0,0.05]
[1644243735223,0.001,42915.0,42912.0,0.10828438]
[1644243736222,0.0003341,42915.0,42912.0,0.10828438]
[1644243736624,0.0003341,42915.0,42911.0,0.36866683]
[1644243737427,0.12308579,42918.0,42914.0,0.05]
[1644243737627,0.12308579,42918.0,42911.0,0.36866683]
[1644243737628,0.12308579,42918.0,42917.0,0.09918541]
[1644243737877,0.12308579,42918.0,42917.0,0.14588541]
[1644243738076,0.12308579,42918.0,42917.0,0.24588541]
[1644243738479,0.12308579,42918.0,42917.0,0.78684858]
[1644243738678,0.06704831,42918.0,42917.0,1.15319827]
[1644243738878,1.0,42922.0,42918.0,0.88409661]
[1644243739078,1.0,42922.0,42918.0,1.122632]
[1644243739277,1.0,42922.0,42918.0,1.222632]
[1644243739879,0.00080304,42920.0,42919.0,1.075932]
[1644243740078,0.00080304,42920.0,42919.0,1.222632]
[1644243740277,0.00080304,42920.0,42919.0,1.322632]
[1644243746376,0.00029788,42928.0,42919.0,1.322632]
[1644243746577,0.04154345,42929.0,42927.0,0.09918541]
[1644243746774,0.01250313,42944.0,42928.0,1.075932]
[1644243746972,0.01250313,42944.0,42934.0,0.31814577]
[1644243747172,0.01250313,42944.0,42938.0,0.04918541]
[1644243747173,0.01866898,42939.0,42938.0,0.04918541]
[1644243747372,0.01866898,42939.0,42938.0,0.13270218]
[1644243747572,0.01866898,42939.0,42935.0,0.05825367]
[1644243747972,0.01366898,42939.0,42934.0,0.31814577]
[1644243748574,0.01366898,42939.0,42935.0,0.36128758]
[1644243748774,0.01366898,42939.0,42936.0,0.05]
[1644243749221,0.01366898,42939.0,42936.0,0.12236601]
[1644243749821,0.22176843,42939.0,42936.0,0.12236601]
[1644243750121,0.01366898,42939.0,42936.0,0.12236601]
[1644243752424,0.01366898,42939.0,42936.0,0.42236601]
[1644243755983,0.01366898,42939.0,42938.0,0.04918541]
[1644243756181,0.01366898,42939.0,42938.0,0.66284699]
[1644243756382,0.01366898,42939.0,42938.0,0.71284699]
[1644243756631,0.00029837,42943.0,42940.0,0.325932]
[1644243756929,0.009176,42944.0,42942.0,0.08562909]
[1644243757125,0.00029837,42943.0,42942.0,0.08562909]
[1644243757324,0.009176,42944.0,42942.0,0.13232909]
[1644243757724,0.00029837,42944.0,42942.0,0.13232909]
[1644243757927,0.00029837,42945.0,42943.0,1.48335155]
[1644243758125,0.00028165,42948.0,42944.0,0.372632]
[1644243758126,0.00029837,42946.0,42944.0,0.372632]
[1644243758329,0.00028161,42962.0,42946.0,0.75]
[1644243758533,0.00078161,42962.0,42955.0,0.04918541]
[1644243758729,0.00078161,42962.0,42956.0,0.40789549]
[1644243758926,0.00078161,42962.0,42956.0,0.50459549]
[1644243759327,0.00078161,42962.0,42957.0,0.35]
[1644243759528,0.00078161,42962.0,42956.0,0.80459549]
[1644243759529,0.03673616,42963.0,42959.0,0.75]
[1644243759728,0.001,42964.0,42960.0,0.772632]
[1644243759928,0.001,42964.0,42960.0,0.372632]
[1644243760379,0.001,42964.0,42962.0,0.19613782]
[1644243760578,0.23603356,42969.0,42963.0,0.325566]
[1644243760778,0.25957955,42973.0,42964.0,0.08612074]
[1644243760979,0.325566,42970.0,42964.0,0.08612074]
[1644243761783,0.20630811,42969.0,42964.0,0.08612074]
[1644243761978,0.32588038,42973.0,42964.0,0.08612074]
[1644243762179,0.32588038,42973.0,42965.0,0.3]
[1644243762379,0.00134755,42973.0,42965.0,0.24401977]
[1644243762978,0.00134755,42973.0,42964.0,0.08612074]
[1644243763178,0.19947776,42970.0,42965.0,0.01834962]
[1644243763378,0.00134755,42973.0,42965.0,0.31834962]
[1644243763379,0.05957855,42973.0,42965.0,0.31834962]
[1644243763590,0.23991684,42985.0,42970.0,0.09918541]
[1644243763591,0.00697984,42985.0,42970.0,0.09918541]
[1644243763787,0.93028141,42986.0,42984.0,0.05]
[1644243763788,0.52224375,42986.0,42984.0,0.05]
[1644243764039,0.00028135,42998.0,42987.0,0.75]
[1644243764333,0.001,43008.0,42999.0,0.75]
[1644243764334,1.90294259,43000.0,42999.0,0.75]
[1644243764527,0.35145635,43000.0,42999.0,1.39425703]
[1644243764728,0.35145635,43000.0,42999.0,0.372266]
[1644243765328,0.65145635,43000.0,42996.0,0.0218774]
[1644243765526,0.65145635,43000.0,42996.0,0.0118774]
[1644243765527,0.325566,42999.0,42996.0,0.0118774]
[1644243765730,0.35145635,43000.0,42996.0,0.0118774]
[1644243766127,0.34645635,43000.0,42996.0,0.0118774]
[1644243766329,0.3,42999.0,42996.0,0.0118774]
[1644243766527,0.325566,42998.0,42996.0,0.0118774]
[1644243766731,0.9990005,42997.0,42996.0,0.0118774]
[1644243767230,0.92112366,42997.0,42996.0,0.0118774]
[1644243767428,0.34645635,43000.0,42992.0,0.02098347]
[1644243768098,0.325566,42999.0,42992.0,0.02098347]
[1644243768294,0.05,42998.0,42992.0,0.02098347]
[1644243768492,0.86626153,42997.0,42992.0,0.02098347]
[1644243768893,0.23292272,42996.0,42992.0,0.02098347]
[1644243769094,0.325566,42995.0,42992.0,0.02098347]
[1644243769293,0.475566,42995.0,42992.0,0.02098347]
[1644243769492,0.33672876,42994.0,42988.0,0.0210057]
[1644243769696,0.27316992,42984.0,42975.0,0.2555203]
[1644243769896,0.05,42989.0,42976.0,0.325566]
[1644243770097,0.05,42980.0,42975.0,0.3055203]
[1644243770399,0.24437477,42985.0,42958.0,0.61133671]
[1644243770400,0.625566,42984.0,42960.0,0.05]
[1644243770698,0.41082846,42980.0,42961.0,0.3]
[1644243770897,0.32669453,42971.0,42961.0,0.3]
[1644243771095,0.0467,42970.0,42961.0,0.3]
[1644243771296,0.24868064,42968.0,42960.0,0.08939]
[1644243771542,0.05,42968.0,42960.0,0.08939]
[1644243771728,0.26766256,42964.0,42960.0,0.08939]
[1644243771930,0.08121503,42963.0,42960.0,0.08939]
[1644243772130,0.0467,42962.0,42960.0,0.08939]
[1644243772332,0.0467,42963.0,42960.0,0.08939]
[1644243772728,0.0467,42963.0,42953.0,0.02088057]
[1644243773130,0.21444134,42962.0,42953.0,0.02088057]
[1644243773330,0.372266,42961.0,42953.0,0.04111894]
[1644243773528,0.372266,42961.0,42953.0,0.02023837]
[1644243773728,0.472266,42961.0,42953.0,0.02023837]
[1644243773949,0.00029886,42961.0,42960.0,0.05]
[1644243774132,0.00029886,42961.0,42960.0,0.325584]
[1644243774133,0.06691632,42961.0,42960.0,0.325584]
[1644243774529,0.06691632,42961.0,42960.0,0.320584]
[1644243774934,0.06691632,42961.0,42953.0,0.02023837]
[1644243774935,0.31614272,42961.0,42953.0,0.02023837]
[1644243775581,0.31614272,42961.0,42952.0,0.0180902]
[1644243775781,0.22865044,42957.0,42952.0,0.0180902]
[1644243775979,0.12865044,42957.0,42952.0,0.0180902]
[1644243776579,0.07469512,42954.0,42952.0,0.0180902]
[1644243776779,0.07469512,42954.0,42953.0,0.325568]
[1644243777584,0.33763853,42954.0,42953.0,0.325568]
[1644243777783,0.33763853,42954.0,42951.0,0.02]
[1644243778381,0.07499398,42954.0,42951.0,0.02]
[1644243778586,0.2367838,42953.0,42951.0,0.02]
[1644243779042,0.23708266,42953.0,42951.0,0.10941]
[1644243779436,0.23708266,42953.0,42951.0,0.02]
[1644243779437,0.78413656,42953.0,42951.0,0.02]
[1644243779637,0.258316,42952.0,42951.0,0.02]
[1644243780240,0.308316,42952.0,42951.0,0.02]
[1644243780441,0.408316,42952.0,42951.0,0.02]
[1644243780837,0.75,42951.0,42943.0,0.02165295]
[1644243781136,0.19806311,42944.0,42943.0,0.02165295]
[1644243781336,0.50359541,42944.0,42943.0,0.02165295]
[1644243781538,0.50359541,42944.0,42942.0,0.0203361]
[1644243782538,0.61852665,42943.0,42942.0,0.0203361]
[1644243782784,0.325568,42943.0,42942.0,0.0203361]
[1644243783180,0.00029886,42945.0,42942.0,0.3203361]
[1644243783377,0.27399089,42956.0,42944.0,0.05]
[1644243783378,0.00029886,42946.0,42944.0,0.05]
[1644243783576,0.01997367,42951.0,42945.0,0.625568]
[1644243783775,0.01997367,42951.0,42950.0,0.05]
[1644243784278,0.01997367,42951.0,42950.0,0.722268]
[1644243784476,0.01997367,42951.0,42950.0,0.772268]
[1644243784877,0.01997367,42951.0,42950.0,0.822268]
[1644243785077,0.01997367,42951.0,42950.0,0.87376792]
[1644243785675,0.00029886,42953.0,42952.0,0.325568]
[1644243785874,0.0003,42954.0,42950.0,0.0967]
[1644243786075,0.0003,42954.0,42953.0,0.05]
[1644243786532,0.0003,42954.0,42953.0,0.0467]
[1644243787827,0.0003,42954.0,42953.0,0.0417]
[1644243788035,0.0003,42954.0,42948.0,0.05]
[1644243788228,0.0003,42954.0,42947.0,0.05]
[1644243788426,0.20888756,42950.0,42947.0,0.05]
[1644243788827,0.20918703,42950.0,42947.0,0.05]
[1644243789126,0.20918703,42950.0,42948.0,0.05]
[1644243789925,0.20918703,42950.0,42942.0,0.38101487]
[1644243789926,0.20918703,42950.0,42942.0,0.05]
[1644243790131,0.3,42949.0,42939.0,0.1]
[1644243790376,0.00029947,42949.0,42939.0,0.1]
[1644243790580,0.25918703,42950.0,42939.0,0.1]
[1644243790775,0.06674085,42944.0,42939.0,0.1]
[1644243790978,0.06674085,42944.0,42939.0,0.05]
[1644243791177,0.21830117,42943.0,42939.0,0.32533556]
[1644243791378,0.21830117,42943.0,42938.0,0.02069012]
[1644243791577,0.21830117,42943.0,42942.0,0.05]
[1644243793076,0.21830117,42943.0,42939.0,0.05]
[1644243793475,0.21830117,42943.0,42937.0,0.38050826]
[1644243793476,0.21830117,42943.0,42938.0,0.05]
[1644243793877,0.21830117,42943.0,42935.0,0.05]
[1644243795426,0.21830117,42943.0,42934.0,0.05]
[1644243795626,0.21830117,42943.0,42935.0,0.05]
[1644243795831,0.21830117,42943.0,42939.0,0.05]
[1644243796229,0.21830117,42943.0,42935.0,0.05]
[1644243796427,0.21830117,42943.0,42939.0,0.05]
[1644243796628,0.21830117,42943.0,42932.0,0.29904506]
[1644243796629,0.21830117,42943.0,42934.0,0.05]
[1644243797229,0.26830117,42943.0,42934.0,0.05]
[1644243798074,0.26830117,42943.0,42932.0,0.02071488]
[1644243798476,0.325568,42942.0,42933.0,0.05]
[1644243799275,0.325568,42942.0,42932.0,0.02071488]
[1644243799476,0.325568,42942.0,42932.0,0.09260731]
[1644243799477,0.425568,42942.0,42932.0,0.09260731]
[1644243799679,0.425568,42942.0,42932.0,0.02189243]
[1644243799978,0.33798212,42941.0,42932.0,0.02189243]
[1644243800180,0.258316,42940.0,42932.0,0.02189243]
[1644243800378,0.325568,42938.0,42932.0,0.02189243]
[1644243800578,0.383853,42938.0,42932.0,0.02189243]
[1644243800776,0.533853,42938.0,42932.0,0.02189243]
[1644243800980,0.258316,42936.0,42932.0,0.02189243]
[1644243801378,0.258316,42936.0,42932.0,0.01489243]
[1644243801630,0.007,42933.0,42931.0,0.02]
[1644243801831,0.325568,42932.0,42931.0,0.02]
[1644243802036,0.375568,42932.0,42931.0,0.02]
[1644243802231,0.007,42933.0,42931.0,0.02]
[1644243802434,0.20259413,42937.0,42932.0,0.6]
[1644243802631,0.02193347,42941.0,42936.0,0.05]
[1644243802830,0.02193347,42941.0,42940.0,0.05]
[1644243803534,0.2414319,42941.0,42940.0,0.05]
[1644243804131,0.2414319,42941.0,42932.0,0.157]
[1644243804332,0.2414319,42941.0,42932.0,0.057]
[1644243804532,0.2997119,42941.0,42932.0,0.057]
[1644243804731,0.375568,42940.0,42932.0,0.007]
[1644243804934,0.325568,42939.0,42932.0,0.007]
[1644243805131,0.24550984,42933.0,42932.0,0.007]
[1644243805382,0.24550984,42933.0,42923.0,0.0405887]
[1644243805383,0.75,42931.0,42923.0,0.0405887]
[1644243805583,0.75,42931.0,42923.0,0.02017652]
[1644243805584,0.383862,42930.0,42923.0,0.02017652]
[1644243805779,0.433862,42930.0,42923.0,0.02017652]
[1644243805982,0.325568,42929.0,42923.0,0.02017652]
[1644243806379,0.22363399,42924.0,42923.0,0.020042]
[1644243806580,0.54920199,42924.0,42923.0,0.020042]
[1644243806782,0.59920199,42924.0,42923.0,0.020042]
[1644243806979,0.27363399,42924.0,42923.0,0.020042]
[1644243807379,0.59920199,42924.0,42923.0,0.020042]
[1644243807581,0.59920199,42924.0,42921.0,0.0222]
[1644243807782,0.57876203,42923.0,42921.0,0.0222]
[1644243807982,0.75,42922.0,42914.0,0.01942122]
[1644243808181,0.613068,42921.0,42914.0,0.01942122]
[1644243808380,0.425568,42921.0,42914.0,0.01942122]
[1644243808582,0.258316,42919.0,42914.0,0.01942122]
[1644243808885,0.21272653,42916.0,42914.0,0.01942122]
[1644243809328,0.26272653,42916.0,42914.0,0.01942122]
[1644243809529,0.26272653,42916.0,42909.0,0.05]
[1644243810227,0.26272653,42916.0,42909.0,0.1]
[1644243810631,0.08578843,42913.0,42909.0,0.05]
[1644243811029,0.08578843,42913.0,42905.0,0.02171996]
[1644243811235,0.41135643,42913.0,42905.0,0.02171996]
[1644243811730,0.51135643,42913.0,42903.0,0.0187016]
[1644243811930,0.41135643,42913.0,42905.0,0.05]
[1644243812229,0.41135643,42913.0,42903.0,0.0187016]
[1644243812430,0.51135643,42913.0,42903.0,0.0187016]
[1644243812630,0.51135643,42913.0,42904.0,0.05]
[1644243812882,0.82160689,42913.0,42904.0,0.05]
[1644243813481,0.82160689,42913.0,42903.0,0.0187016]
[1644243813881,0.51135643,42913.0,42903.0,0.0187016]
[1644243814096,0.8,42912.0,42903.0,0.04017413]
[1644243814283,0.316635,42911.0,42907.0,0.0189]
[1644243814482,0.383888,42910.0,42907.0,0.0189]
[1644243814783,0.258316,42908.0,42907.0,0.0189]
[1644243814980,0.5149209,42908.0,42907.0,0.0189]
[1644243815181,0.5649209,42908.0,42907.0,0.0189]
[1644243816280,0.39161166,42909.0,42907.0,0.0189]
[1644243816281,0.23179981,42909.0,42907.0,0.0189]
[1644243817335,0.47990778,42909.0,42907.0,0.0189]
[1644243818136,0.23179981,42909.0,42907.0,0.0189]
[1644243818436,0.23179981,42909.0,42908.0,0.05]
[1644243819238,0.23179981,42909.0,42907.0,0.0189]
[1644243819635,0.21809635,42913.0,42907.0,0.0189]
[1644243819837,0.375568,42912.0,42907.0,0.0189]
[1644243820038,0.375568,42912.0,42911.0,0.05]
[1644243820039,0.05,42912.0,42911.0,0.05]
[1644243820287,0.34054632,42914.0,42907.0,0.0689]
[1644243820479,0.34054632,42914.0,42908.0,0.26204819]
[1644243820679,0.24794357,42912.0,42908.0,0.25918734]
[1644243820880,0.24794357,42912.0,42907.0,0.0689]
[1644243823887,0.02029685,42917.0,42911.0,0.05]
[1644243824128,0.02029685,42917.0,42916.0,0.05]
[1644243824927,0.83626043,42917.0,42916.0,0.05]
[1644243825127,0.51069243,42917.0,42916.0,0.05]
[1644243825729,0.49039558,42917.0,42916.0,0.05]
[1644243826531,0.81596358,42917.0,42913.0,0.05]
[1644243826731,0.49039558,42917.0,42913.0,0.05]
[1644243826932,0.21553463,42917.0,42913.0,0.05]
[1644243827773,0.06453065,42916.0,42913.0,0.05]
[1644243827974,0.54516571,42917.0,42913.0,0.05]
[1644243828575,0.325568,42916.0,42913.0,0.05]
[1644243828774,0.325568,42916.0,42910.0,0.05]
[1644243828974,0.08603549,42915.0,42910.0,0.05]
[1644243829176,0.54516571,42917.0,42913.0,0.05]
[1644243829475,0.325568,42916.0,42913.0,0.05]
[1644243830181,0.21553463,42917.0,42913.0,0.05]
[1644243830378,0.21553463,42917.0,42916.0,0.05]
[1644243830577,0.21553463,42917.0,42916.0,0.375568]
[1644243830777,0.21553463,42917.0,42916.0,0.70006883]
[1644243831077,0.21553463,42917.0,42916.0,0.425568]
[1644243831278,0.21553463,42917.0,42916.0,0.1]
[1644243831537,0.01844838,42920.0,42916.0,0.315625]
[1644243831730,0.02069192,42926.0,42919.0,0.05]
[1644243831929,0.02069192,42926.0,42925.0,0.05]
[1644243831930,0.34625992,42926.0,42925.0,0.05]
[1644243832331,1.21603284,42926.0,42925.0,0.05]
[1644243833335,1.21603284,42926.0,42920.0,0.05]
[1644243833534,1.21603284,42926.0,42920.0,0.0967]
[1644243833734,1.19534092,42926.0,42920.0,0.1467]
[1644243834734,0.15975376,42925.0,42920.0,0.1467]
[1644243835377,0.86977292,42926.0,42920.0,0.1467]
[1644243835579,0.48532176,42925.0,42920.0,0.1467]
[1644243836681,0.48532176,42925.0,42920.0,0.0967]
[1644243836881,0.48532176,42925.0,42920.0,0.1467]
[1644243837081,0.15975376,42925.0,42920.0,0.1467]
[1644243837485,0.63564204,42926.0,42920.0,0.1467]
[1644243837984,0.325568,42925.0,42920.0,0.1467]
[1644243838183,0.63564204,42926.0,42920.0,0.1467]
[1644243838383,0.15975376,42925.0,42920.0,0.1467]
[1644243838684,0.7953958,42926.0,42924.0,0.05]
[1644243838886,0.63564204,42926.0,42924.0,0.05]
[1644243839134,0.33978634,42926.0,42924.0,0.05]
[1644243839330,0.25056505,42926.0,42924.0,0.05]
[1644243839732,0.325568,42925.0,42920.0,0.1467]
[1644243839929,0.325568,42925.0,42920.0,0.0967]
[1644243840330,0.25056505,42926.0,42923.0,0.05]
[1644243840531,0.325568,42925.0,42923.0,0.05]
[1644243840732,0.69665907,42925.0,42923.0,0.05]
[1644243840932,0.37109107,42925.0,42923.0,0.05]
[1644243841135,0.53084483,42925.0,42923.0,0.05]
[1644243841336,0.37109107,42925.0,42923.0,0.05]
[1644243841936,0.325568,42924.0,42923.0,0.05]
[1644243842135,0.43763505,42925.0,42923.0,0.05]
[1644243842335,0.59738881,42925.0,42923.0,0.05]
[1644243842536,0.43763505,42925.0,42923.0,0.05]
[1644243842781,0.43763505,42925.0,42920.0,0.0967]
[1644243842782,0.325568,42924.0,42920.0,0.1467]
[1644243843379,0.325568,42924.0,42923.0,0.05]
[1644243843980,0.40204214,42924.0,42923.0,0.05]
[1644243844780,0.40204214,42924.0,42920.0,0.05]
[1644243844982,0.64367388,42924.0,42920.0,0.05]
[1644243845181,0.24163174,42924.0,42916.0,0.05]
[1644243845384,0.07880059,42923.0,42912.0,0.01870368]
[1644243845580,0.325568,42922.0,42920.0,0.05]
[1644243846179,0.325568,42922.0,42919.0,0.05]
[1644243846638,0.07880059,42923.0,42919.0,0.05]
[1644243846836,0.40436859,42923.0,42922.0,0.05]
[1644243847237,0.325568,42923.0,42922.0,0.05]
[1644243847437,0.53114483,42925.0,42922.0,0.05]
[1644243847637,0.53114483,42925.0,42924.0,0.05]
[1644243847942,0.69695907,42925.0,42924.0,0.05]
[1644243848137,0.69695907,42925.0,42921.0,0.05827905]
[1644243848337,0.53114483,42925.0,42921.0,0.05827905]
[1644243848539,0.37139107,42925.0,42919.0,0.05]
[1644243848739,0.37139107,42925.0,42918.0,0.0967]
[1644243848740,0.69695907,42925.0,42924.0,0.05]
[1644243849139,0.69695907,42925.0,42919.0,0.31421888]
[1644243849140,0.53114146,42925.0,42919.0,0.31421888]
[1644243849338,0.53114146,42925.0,42924.0,0.05]
[1644243849538,0.37139107,42925.0,42924.0,0.05]
[1644243849740,0.37139107,42925.0,42924.0,0.0499382]
[1644243850384,0.37139107,42925.0,42921.0,0.0499382]
[1644243850589,0.0003,42925.0,42924.0,0.0499382]
[1644243851783,0.0003,42925.0,42920.0,0.0499382]
[1644243851784,0.90412233,42925.0,42920.0,0.0499382]
[1644243851984,0.66383481,42925.0,42920.0,0.0499382]